bitfinex/quotes_ETHUSD_20241217
["timestamp","ask_amount","ask_price","bid_price","bid_amount"]
[1734423160502,0.7581,3998.8,3997.7,0.55]
[1734423162103,0.7581,3998.8,3997.6,0.37486414]
[1734423162401,0.7581,3998.8,3997.7,0.86486161]
[1734423162711,0.7581,3998.8,3997.6,0.37486414]
[1734423163904,0.8307,3998.7,3997.6,0.37486414]
[1734423164204,1.03673082,3998.6,3997.6,0.37486414]
[1734423164704,0.8307,3998.6,3997.6,0.37486414]
[1734423167360,0.8307,3998.6,3997.7,0.86503827]
[1734423167604,0.8307,3998.6,3997.6,0.37486414]
[1734423167908,0.8307,3998.6,3997.7,0.8651403]
[1734423168082,0.8307,3998.6,3997.7,1.24000444]
[1734423168284,0.8307,3998.6,3997.7,0.37486414]
[1734423169440,0.8307,3998.6,3997.7,0.85852348]
[1734423169610,0.8307,3998.6,3997.8,0.37486414]
[1734423169791,0.8307,3998.6,3997.8,0.71643132]
[1734423175720,0.8307,3998.6,3997.9,0.86529335]
[1734423175892,0.8307,3998.6,3998.0,0.34156718]
[1734423176205,0.8307,3998.6,3998.0,0.95593234]
[1734423177119,0.8307,3998.6,3998.1,0.86524479]
[1734423177321,0.8307,3998.6,3998.2,0.71643132]
[1734423177481,0.166833,3999.0,3998.3,0.86522266]
[1734423177482,0.8207,3998.9,3998.3,0.86522266]
[1734423177682,0.166833,3999.0,3998.4,0.71643132]
[1734423180523,0.758,3998.9,3998.4,0.71643132]
[1734423183888,0.758,3998.9,3997.7,0.14209216]
[1734423183889,0.758,3998.9,3997.7,1.38762468]
[1734423184098,0.758,3998.7,3997.8,0.86537959]
[1734423184302,0.758,3998.7,3997.5,1.42092164]
[1734423184303,0.758,3998.6,3997.5,0.37486414]
[1734423184559,0.758,3998.6,3997.6,0.8654381]
[1734423184831,0.758,3998.6,3997.6,0.37486414]
[1734423185188,0.758,3998.6,3997.6,0.71643132]
[1734423185385,0.758,3998.4,3997.7,0.37486414]
[1734423186109,0.758,3998.4,3997.1,1.0460575]
[1734423186309,0.758,3998.4,3997.5,0.37486414]
[1734423186491,0.758,3998.4,3997.6,0.34156718]
[1734423186696,0.758,3998.4,3997.7,0.37486414]
[1734423186889,0.758,3998.4,3997.8,0.48827031]
[1734423187091,0.758,3998.4,3997.9,0.37486414]
[1734423187409,0.758,3998.4,3998.0,0.34156718]
[1734423187721,0.758,3998.4,3998.1,0.37486414]
[1734423188968,0.758,3998.8,3998.2,0.34156718]
[1734423189255,0.758,3998.8,3998.3,0.37486414]
[1734423189398,0.166833,3999.0,3998.4,0.34156718]
[1734423189600,0.166833,3999.0,3998.5,0.37486414]
[1734423192394,0.166833,3999.0,3998.5,0.71643132]
[1734423193364,0.166833,3999.0,3998.6,0.34156718]
[1734423193641,0.166833,3999.0,3998.7,0.37486414]
[1734423193845,0.166833,3999.0,3998.8,0.34156718]
[1734423194039,0.166833,3999.0,3998.9,0.37486414]
[1734423203563,0.166833,3999.0,3998.9,0.71643132]
[1734423203805,0.166833,3999.0,3998.9,1.72941453]
[1734423204105,0.166833,3999.0,3998.9,1.72939671]
[1734423204606,0.166833,3999.0,3998.9,4.72939671]
[1734423204904,0.166833,3999.0,3998.9,6.02585962]
[1734423205588,0.166833,3999.0,3998.9,1.72939671]
[1734423205999,0.166833,3999.0,3998.9,0.86505445]
[1734423206315,0.166833,3999.0,3998.9,0.37486414]
[1734423208075,0.166833,3999.0,3998.9,0.71643132]
[1734423210508,0.166833,3999.0,3998.9,1.48623132]
[1734423212015,0.166833,3999.0,3998.9,2.34994644]
[1734423212434,0.166833,3999.0,3998.9,1.48623132]
[1734423212636,0.166833,3999.0,3998.9,2.60312605]
[1734423212964,0.166833,3999.0,3998.9,1.7394602]
[1734423213719,0.166833,3999.0,3998.9,0.71643132]
[1734423213916,0.166833,3999.0,3998.0,0.7698]
[1734423214155,0.166833,3999.0,3998.1,0.34156718]
[1734423217382,0.166833,3999.0,3997.7,0.7698]
[1734423217383,0.7788,3998.9,3997.7,0.7698]
[1734423217526,0.7788,3998.9,3997.8,1.38727982]
[1734423217876,0.7788,3998.9,3997.8,0.52315293]
[1734423218013,0.7788,3998.9,3997.8,0.34156718]
[1734423219093,0.7788,3998.7,3997.8,0.34156718]
[1734423221252,1.03719662,3998.8,3997.8,0.34156718]
[1734423221253,0.84655386,3998.6,3997.8,0.34156718]
[1734423221455,1.03719662,3998.8,3997.8,0.34156718]
[1734423221456,0.7788,3998.5,3997.8,0.34156718]
[1734423224685,1.20402962,3999.0,3997.8,0.34156718]
[1734423224845,0.7788,3998.6,3997.8,0.34156718]
[1734423227100,0.166833,3999.0,3998.0,0.55]
[1734423227327,0.166833,3999.0,3998.2,0.55]
[1734423227604,0.166833,3999.0,3998.4,0.55]
[1734423227815,0.166833,3999.0,3998.5,1.67244777]
[1734423227951,0.166833,3999.0,3998.5,0.80883001]
[1734423228545,0.166833,3999.0,3998.5,0.32405468]
[1734423228946,0.166833,3999.0,3998.3,0.7684]
[1734423229950,0.166833,3999.0,3998.0,1.09245468]
[1734423230148,0.166833,3999.0,3998.1,0.86369253]
[1734423230349,0.166833,3999.0,3998.2,0.32405468]
[1734423230545,0.166833,3999.0,3998.3,0.19561472]
[1734423231604,0.166833,3999.0,3998.4,0.7684]
[1734423231757,0.166833,3999.0,3998.4,1.09245468]
[1734423232101,0.918033,3999.0,3998.4,1.09245468]
[1734423232267,0.918033,3999.0,3998.4,0.32405468]
[1734423232603,0.918033,3999.0,3998.1,0.7684]
[1734423233313,0.918033,3999.0,3998.1,0.98225122]
[1734423234412,0.918033,3999.0,3998.1,0.7684]
[1734423235192,0.918033,3999.0,3997.9,0.32405468]
[1734423235524,0.918033,3999.0,3998.0,0.86401724]
[1734423235694,0.918033,3999.0,3998.1,0.32405468]
[1734423241372,0.918033,3999.0,3997.5,1.56906129]
[1734423241373,0.918033,3999.0,3997.5,1.8018575]
[1734423241618,0.918033,3999.0,3997.6,0.86409483]
[1734423241931,0.7633,3998.8,3997.4,0.32405468]
[1734423242285,0.7633,3998.8,3996.9,1.37011218]
[1734423242286,0.7633,3998.7,3996.9,1.37011218]
[1734423242636,0.7633,3998.5,3997.0,2.1602284]
[1734423242831,0.7633,3998.5,3996.9,0.32405468]
[1734423242994,1.03719662,3998.6,3996.9,0.32405468]
[1734423242995,0.85592535,3998.4,3996.9,0.32405468]
[1734423243326,1.03719662,3998.6,3996.9,0.32405468]
[1734423243327,0.7633,3998.2,3996.9,0.32405468]
[1734423246281,0.7633,3998.2,3996.9,0.59614352]
[1734423246598,0.7633,3998.2,3997.0,0.32405468]
[1734423253075,0.7633,3998.2,3997.1,0.7558]
[1734423253360,0.7633,3998.2,3997.2,1.73729404]
[1734423253572,0.7633,3998.2,3997.3,3.57651829]
[1734423253860,0.7633,3998.2,3997.3,0.90057297]
[1734423254227,0.7633,3998.2,3997.4,1.18729135]
[1734423254434,0.7633,3998.2,3997.4,0.32405468]
[1734423254745,0.166833,3999.0,3997.7,0.55]
[1734423254746,0.7633,3998.9,3997.7,0.55]
[1734423254945,0.7633,3998.9,3997.8,0.5409633]
[1734423255116,0.7633,3998.9,3997.9,0.55]
[1734423255308,0.7633,3998.9,3998.0,0.32405468]
[1734423256639,0.7633,3998.9,3997.8,0.21690862]
[1734423256840,0.7633,3998.9,3997.5,0.32405468]
[1734423257036,0.7633,3998.9,3997.5,0.89584773]
[1734423258181,0.7633,3998.9,3997.6,0.32405468]
[1734423259923,0.7633,3998.9,3997.6,0.61806018]
[1734423261483,0.7633,3998.9,3997.6,0.32405468]
[1734423261690,0.7633,3998.9,3997.3,3.0]
[1734423261691,0.8044,3998.8,3997.3,0.55]
[1734423261844,0.8044,3998.6,3997.3,1.1484525]
[1734423262958,0.8044,3998.6,3997.3,1.47250718]
[1734423263474,0.8044,3998.6,3997.4,0.32405468]
[1734423263676,0.8044,3998.6,3997.4,1.18525859]
[1734423263845,0.8044,3998.6,3997.4,0.32405468]
[1734423264454,1.00835972,3998.6,3997.4,0.32405468]
[1734423267612,1.00835972,3998.6,3997.4,0.61806018]
[1734423267903,0.8044,3998.6,3997.4,0.61806018]
[1734423268695,0.8044,3998.6,3997.5,0.2940055]
[1734423269359,0.8044,3998.6,3997.5,0.61806018]
[1734423271508,0.8044,3998.6,3997.6,0.32405468]
[1734423271729,0.8044,3998.6,3997.6,0.61806018]
[1734423272157,0.8044,3998.6,3997.7,0.2940055]
[1734423272279,0.8044,3998.6,3997.8,0.32405468]
[1734423272627,0.8044,3998.6,3997.9,1.92355708]
[1734423272854,0.8044,3998.6,3998.0,0.32405468]
[1734423272994,0.166833,3999.0,3998.1,0.2940055]
[1734423272995,0.8044,3998.9,3998.1,0.2940055]
[1734423273196,0.8044,3998.9,3998.2,0.54881375]
[1734423273406,0.8044,3998.9,3998.3,0.2940055]
[1734423275421,0.8044,3998.9,3998.3,0.61806018]
[1734423276741,0.8044,3998.9,3998.4,0.32405468]
[1734423276919,0.166833,3999.0,3998.5,0.2940055]
[1734423277282,0.166833,3999.0,3998.5,1.38936018]
[1734423277477,0.166833,3999.0,3998.6,0.13893602]
[1734423277683,0.166833,3999.0,3998.6,0.43294152]
[1734423278832,0.166833,3999.0,3998.7,0.8440055]
[1734423279173,0.166833,3999.0,3998.9,0.55]
[1734423279281,0.166833,3999.0,3998.9,5.68790978]
[1734423279483,0.166833,3999.0,3998.9,7.02557649]
[1734423279933,0.166833,3999.0,3998.9,7.79687649]
[1734423281238,0.166833,3999.0,3998.9,8.84204134]
[1734423281441,0.166833,3999.0,3998.9,7.91968177]
[1734423283551,0.166833,3999.0,3998.9,5.78177199]
[1734423284084,0.166833,3999.0,3998.9,7.91551091]
[1734423284437,0.166833,3999.0,3998.9,6.63528039]
[1734423285078,0.166833,3999.0,3998.9,6.63500865]
[1734423285586,0.166833,3999.0,3998.9,5.78177199]
[1734423286094,0.8044,4000.1,3999.1,0.55]
[1734423286389,0.8044,4000.1,3999.3,0.55]
[1734423286687,0.813,4001.4,3999.6,0.8016]
[1734423287099,0.813,4001.4,3999.7,0.55]
[1734423287408,0.813,4001.4,3999.7,1.16806018]
[1734423287624,0.813,4001.4,3999.9,0.55]
[1734423287759,0.813,4001.4,3999.9,0.87405468]
[1734423287966,0.813,4001.4,4000.1,0.55]
[1734423289838,0.813,4001.4,4000.6,0.8016]
[1734423290119,2.8686609,4003.0,4001.1,0.55]
[1734423290120,0.813,4002.9,4001.1,0.55]
[1734423290316,0.813,4002.9,4001.3,0.55]
[1734423290317,0.9911433,4002.9,4001.3,0.55]
[1734423291371,0.9911433,4002.9,4001.3,0.86813931]
[1734423291916,0.9911433,4002.9,4001.5,0.55]
[1734423292676,0.813,4002.8,4001.0,0.8016]
[1734423292972,0.813,4002.6,4000.4,1.3516]
[1734423293289,0.813,4002.6,4000.4,0.8016]
[1734423293630,0.34952744,4002.7,4000.4,0.8016]
[1734423293631,0.813,4002.4,4000.4,1.12565468]
[1734423294331,0.813,4002.4,4000.5,0.32405468]
[1734423294537,0.813,4002.4,4000.6,3.0]
[1734423294799,0.813,4002.2,4000.7,0.32405468]
[1734423297223,0.813,4002.2,4000.7,0.62538482]
[1734423297435,0.813,4002.2,4000.8,0.55]
[1734423297722,0.813,4002.2,4000.9,3.32405468]
[1734423297929,0.813,4002.2,4001.0,1.10293014]
[1734423298140,0.813,4002.2,4001.1,0.32405468]
[1734423299813,0.813,4002.2,4000.6,3.0]
[1734423300010,0.813,4002.2,4000.6,3.76675316]
[1734423300320,0.813,4002.2,4000.7,0.62538482]
[1734423300514,0.813,4002.2,4000.8,0.55]
[1734423300843,0.813,4002.2,4000.9,0.32405468]
[1734423305169,0.813,4002.2,4000.9,0.62538482]
[1734423307375,0.813,4002.2,4000.9,0.9879233]
[1734423307575,0.813,4002.2,4000.9,0.62538482]
[1734423309325,0.813,4002.2,4000.9,0.32405468]
[1734423309748,0.813,4002.2,4000.9,0.62538482]
[1734423309987,0.813,4002.2,4001.0,0.30133014]
[1734423310304,0.813,4002.2,4001.1,0.32405468]
[1734423311690,0.813,4002.2,4001.1,0.62538482]
[1734423312793,0.813,4002.2,4000.6,3.0]
[1734423312993,0.813,4002.2,4000.5,0.55]
[1734423313207,0.813,4002.2,4000.7,0.32405468]
[1734423315660,0.813,4002.2,4000.4,3.0]
[1734423315983,0.813,4002.2,4000.3,0.32405468]
[1734423316184,0.813,4002.2,4000.4,0.32405468]
[1734423316549,0.7992,4002.0,4000.4,0.32405468]
[1734423316749,2.33729805,4002.1,4000.0,0.32405468]
[1734423316750,0.7992,4001.8,4000.0,0.32405468]
[1734423317957,0.7992,4001.8,4000.0,0.62538482]
[1734423318159,0.7992,4001.8,4000.1,0.30133014]
[1734423318369,0.7992,4001.8,4000.2,0.32405468]
[1734423318703,0.7992,4001.8,4000.2,0.62538482]
[1734423319712,0.7992,4001.6,4000.2,0.62538482]
[1734423323558,0.7992,4001.5,4000.2,0.62538482]
[1734423324489,0.7992,4001.3,4000.2,0.62538482]
[1734423326512,0.7992,4001.1,4000.2,0.62538482]
[1734423327536,0.7992,4001.1,4000.2,0.32405468]
[1734423327837,0.7992,4000.9,3999.8,0.55]
[1734423329309,0.7992,4000.9,3999.8,0.87405468]
[1734423329507,0.7992,4000.9,4000.0,0.55]
[1734423330709,0.7992,4000.9,4000.0,0.32405468]
[1734423332196,0.7992,4000.9,4000.0,0.62538482]
[1734423333538,0.7992,4000.9,4000.0,0.32405468]
[1734423335246,0.8304,4000.7,3999.8,0.55]
[1734423335444,0.8304,4000.7,3999.2,1.87276485]
[1734423335445,0.8304,4000.7,3999.5,0.55]
[1734423335950,0.8304,4000.7,3999.4,0.32405468]
[1734423336110,1.0781279,4000.8,3999.4,0.32405468]
[1734423336111,0.85690378,4000.6,3999.4,0.32405468]
[1734423336310,0.8304,4000.4,3999.4,0.32405468]
[1734423337511,0.8304,4000.4,3999.5,0.30133014]
[1734423337724,0.8304,4000.4,3999.6,0.32405468]
[1734423337940,0.8304,4000.4,3999.7,0.30133014]
[1734423338141,0.8304,4000.4,3999.8,0.32405468]
[1734423338342,1.04659771,4000.4,3999.8,0.32405468]
[1734423339899,0.8263,4000.3,3999.8,0.32405468]
[1734423341705,0.8263,4000.7,3999.9,1.10233014]
[1734423341949,0.8263,4000.7,4000.0,0.87405468]
[1734423342105,0.8263,4000.7,4000.1,0.30133014]
[1734423342309,0.8263,4000.7,4000.2,0.52169316]
[1734423342530,0.8263,4000.7,4000.2,0.32405468]
[1734423345881,0.8254,4001.1,4000.3,0.85133014]
[1734423346168,1.3754,4001.6,4000.5,0.55]
[1734423346312,1.3754,4001.6,4000.6,0.62538482]
[1734423346512,0.8254,4001.6,4000.7,0.74980848]
[1734423346713,0.8254,4001.6,4000.8,0.32405468]
[1734423346952,0.8254,4001.6,4000.8,0.62538482]
[1734423347160,0.8254,4001.6,4001.0,0.8227]
[1734423347359,0.8254,4001.6,4001.1,1.17538482]
[1734423347527,0.8254,4001.6,4001.2,0.19980848]
[1734423352059,0.8254,4001.6,4001.2,0.52386316]
[1734423354257,0.8254,4001.6,4001.2,0.19980848]
[1734423356337,0.8254,4001.6,4001.1,0.30133014]
[1734423356629,0.8254,4001.6,4000.1,0.8328]
[1734423356843,0.8332,4001.4,3999.7,0.8328]
[1734423357067,0.8332,4001.2,3999.7,1.45818482]
[1734423357375,0.8332,4001.0,3999.7,1.45818482]
[1734423357580,0.8332,4001.0,3999.8,0.78377701]
[1734423358266,0.8332,4001.0,3999.9,0.55]
[1734423358571,0.8332,4001.0,4000.1,0.55]
[1734423359147,0.85703918,4000.9,4000.1,0.55]
[1734423359345,0.8332,4001.0,4000.0,0.62538482]
[1734423359346,0.8332,4000.8,4000.0,0.62538482]
[1734423360425,0.8332,4000.8,4000.1,0.55]
[1734423361438,1.02021118,4000.8,4000.0,0.62538482]
[1734423361639,0.85689923,4000.7,3999.8,0.87405468]
[1734423361841,0.7629,4000.6,3999.8,1.17538482]
[1734423362335,0.7629,4000.6,3999.8,0.62538482]
[1734423364192,0.7629,4000.6,3999.9,0.30133014]
[1734423364341,0.7629,4000.6,3999.9,0.62538482]
[1734423366511,0.94288118,4000.6,3999.9,0.62538482]
[1734423368384,0.7629,4000.6,3999.9,0.62538482]
[1734423371026,0.7629,4000.6,3999.5,1.17538482]
[1734423376436,0.7629,4000.6,3998.8,3.0]
[1734423376437,0.771,4000.0,3998.7,3.0]
[1734423376638,1.07829913,4000.1,3998.6,1.82727639]
[1734423376639,0.771,3999.7,3998.6,0.7834]
[1734423376938,1.07829913,3999.5,3998.4,0.32405468]
[1734423377285,1.07829913,3999.5,3998.1,0.7834]
[1734423377286,0.771,3999.4,3998.6,0.62538482]
[1734423377835,0.771,3999.4,3998.7,0.32405468]
[1734423378033,0.771,3999.4,3998.7,0.62538482]
[1734423381426,0.771,3999.4,3998.8,1.3334]
[1734423381626,0.771,3999.4,3998.9,0.62538482]
[1734423381825,0.771,3999.4,3998.9,0.8212633]
[1734423382027,0.771,4000.3,3999.0,0.55]
[1734423382272,0.771,4000.3,3999.2,0.55]
[1734423382472,0.771,4000.3,3999.3,0.62538482]
[1734423382642,0.771,4000.3,3999.4,0.55]
[1734423383425,0.95179118,4000.3,3999.4,0.55]
[1734423383682,0.771,4000.3,3999.4,0.55]
[1734423384491,0.771,4000.3,3999.5,0.30133014]
[1734423384626,0.771,4000.3,3999.5,0.62538482]
[1734423387974,0.771,4000.3,3999.6,0.55]
[1734423388291,0.771,4000.3,3999.6,1.17538482]
[1734423388582,0.771,4000.3,3999.0,0.87405468]
[1734423388780,0.771,4000.3,3999.0,0.32405468]
[1734423389094,0.771,4000.1,3999.0,0.32405468]
[1734423389686,0.771,4000.1,3999.0,0.62538482]
[1734423390210,2.33775148,4000.0,3999.0,0.62538482]
[1734423390362,0.771,3999.9,3998.4,0.32405468]
[1734423390700,2.33775148,3999.6,3998.4,0.32405468]
[1734423390981,2.33775148,3999.6,3998.0,0.30133014]
[1734423390982,0.771,3999.4,3998.0,0.30133014]
[1734423391556,0.771,3999.4,3998.1,0.32405468]
[1734423392039,0.85358177,3999.3,3998.1,0.32405468]
[1734423392254,0.771,3999.2,3998.1,0.32405468]
[1734423393183,0.771,3999.0,3998.1,0.32405468]
[1734423393543,0.771,3999.0,3997.5,0.55]
[1734423393742,0.771,3999.0,3997.5,0.87405468]
[1734423393940,0.771,3999.0,3997.5,0.32405468]
[1734423394242,0.771,3998.7,3997.5,0.32405468]
[1734423394470,0.771,3998.5,3997.5,0.32405468]
[1734423396658,0.771,3998.3,3996.9,0.87405468]
[1734423396854,0.771,3998.3,3996.6,0.87405468]
[1734423397180,0.771,3998.3,3996.7,0.30133014]
[1734423397363,0.771,3998.3,3996.8,3.32405468]
[1734423397664,0.771,3998.1,3996.8,0.62538482]
[1734423399505,0.771,3998.1,3996.9,0.30133014]
[1734423399932,0.771,3998.1,3997.0,0.32405468]
[1734423400802,0.771,3998.1,3996.5,0.55]
[1734423400975,0.771,3998.1,3996.6,0.32405468]
[1734423402623,0.771,3997.9,3996.6,0.32405468]
[1734423402908,0.771,3997.7,3996.6,0.32405468]
[1734423405655,2.33775148,3997.6,3996.6,0.32405468]
[1734423405853,2.33775148,3997.6,3995.2,0.24849798]
[1734423405854,2.33775148,3997.2,3995.8,0.32405468]
[1734423406001,0.7817,3997.1,3995.8,0.62538482]
[1734423406202,0.7817,3996.9,3995.8,0.62538482]
[1734423407523,0.7817,3996.9,3995.8,0.32405468]
[1734423407920,0.7817,3996.9,3995.9,0.30133014]
[1734423408165,0.7817,3996.9,3996.0,0.87405468]
[1734423408334,0.7817,3996.9,3996.1,0.30133014]
[1734423408533,0.7817,3996.9,3996.2,0.32405468]
[1734423409525,0.7817,3996.9,3996.1,0.30133014]
[1734423409836,0.7817,3996.9,3996.1,0.62538482]
[1734423410764,0.7817,3996.9,3995.5,3.8222]
[1734423410765,0.7817,3996.9,3995.5,0.8222]
[1734423410965,0.7817,3996.9,3995.6,0.62538482]
[1734423411919,0.7817,3996.9,3995.7,0.55]
[1734423412125,0.7817,3996.9,3995.9,0.55]
[1734423412350,0.7817,3996.9,3996.0,0.62538482]
[1734423412552,0.7817,3996.9,3996.1,0.55]
[1734423412867,0.7817,3996.9,3996.2,0.32405468]
[1734423413289,0.7817,3996.9,3996.2,0.62538482]
[1734423414066,0.7817,3996.9,3996.3,0.30133014]
[1734423414223,0.7817,3996.9,3996.3,0.62538482]
[1734423416624,0.7817,3996.9,3996.4,0.32405468]
[1734423416973,0.31087515,3997.8,3996.5,0.30133014]
[1734423416974,0.7817,3997.7,3996.5,0.30133014]
[1734423417479,0.7817,3997.7,3996.4,0.32405468]
[1734423417652,0.7817,3997.5,3996.4,0.32405468]
[1734423418260,0.7817,3997.5,3996.0,0.62538482]
[1734423419396,0.7817,3997.5,3996.1,0.32405468]
[1734423419599,0.7817,3997.5,3996.1,0.62538482]
[1734423420373,0.7817,3997.5,3996.2,0.30133014]
[1734423420556,0.7817,3997.5,3996.5,0.55]
[1734423420758,0.7817,3997.5,3996.6,1.14961029]
[1734423420988,0.7817,3997.5,3996.7,0.55]
[1734423421169,0.7817,3997.5,3996.8,0.62538482]
[1734423421999,0.7817,3997.5,3996.9,0.55]
[1734423422221,0.7817,3997.5,3997.0,0.62538482]
[1734423423162,2.33775148,3998.7,3997.0,1.44358482]
[1734423423163,0.8138,3998.6,3997.0,1.44358482]
[1734423423474,0.8138,3998.4,3997.1,0.55]
[1734423423805,0.8138,3998.4,3997.0,4.9429433]
[1734423423806,0.8138,3998.4,3997.3,0.55]
[1734423424102,0.8138,3998.4,3997.5,0.55]
[1734423424309,0.8138,3998.4,3997.7,0.55]
[1734423424864,0.8138,3998.4,3997.7,0.87405468]
[1734423425065,0.8138,3998.4,3997.8,1.44358482]
[1734423425439,0.8138,3998.8,3997.9,0.50140889]
[1734423425719,3.37466331,4000.0,3998.0,1.17538482]
[1734423425720,0.8138,3999.9,3998.0,1.17538482]
[1734423426281,0.8138,3999.9,3998.1,3.0]
[1734423426484,0.8138,3999.9,3998.2,1.17538482]
[1734423426729,0.8138,3999.9,3998.4,0.55]
[1734423426921,0.8138,3999.9,3998.6,0.55]
[1734423427112,0.8138,3999.9,3998.6,4.72841316]
[1734423427483,0.8138,3999.9,3998.7,0.32405468]
[1734423428017,0.8138,3999.9,3998.7,0.62538482]
[1734423429397,0.8138,3999.9,3998.8,0.55]
[1734423429600,0.8138,3999.9,3998.8,1.17538482]
[1734423429804,0.8138,3999.9,3998.9,0.50297433]
[1734423430125,0.8138,3999.9,3999.0,0.55]
[1734423431133,0.8138,3999.9,3999.0,0.85133014]
[1734423431318,0.8138,3999.9,3999.0,1.17538482]
[1734423431527,0.8138,3999.9,3999.2,4.3682]
[1734423431831,0.8138,4001.1,3999.4,0.55]
[1734423432329,0.8138,4001.1,3999.6,0.55]
[1734423432630,0.8138,4001.1,3999.7,0.62538482]
[1734423433142,0.8138,4001.1,3999.3,1.17538482]
[1734423434339,1.1643887,4001.3,3999.3,1.17538482]
[1734423434340,0.8138,4000.9,3999.3,1.17538482]
[1734423438278,0.8138,4000.9,3999.3,0.62538482]
[1734423443028,0.19781887,4001.0,3998.9,0.32405468]
[1734423443029,0.7887,4000.7,3998.9,0.32405468]
[1734423443229,2.33775148,4000.4,3998.9,0.32405468]
[1734423443569,0.7887,4000.3,3998.9,0.32405468]
[1734423443770,0.7887,4000.1,3998.9,0.32405468]
[1734423444135,0.7887,4000.1,3998.9,0.62538482]
[1734423444332,0.7887,4000.1,3999.0,0.30133014]
[1734423444567,0.7887,4000.1,3999.1,0.32405468]
[1734423444926,0.7887,4000.1,3999.1,0.62538482]
[1734423445574,0.7887,4000.1,3998.4,3.0]
[1734423445776,0.7887,4000.1,3998.5,0.37985]
[1734423446372,0.7887,4000.1,3998.5,0.66682281]
[1734423446558,0.7887,4000.1,3998.5,0.28697281]
[1734423448234,0.7887,4000.1,3998.5,0.553704]
[1734423448548,0.7887,4000.1,3998.6,0.28697281]
[1734423450290,0.7887,4000.1,3998.7,4.06523119]
[1734423450438,0.7887,4000.1,3998.8,0.28697281]
[1734423450628,0.7887,4000.1,3998.9,0.4352204]
[1734423450973,0.7887,4000.1,3999.0,0.28697281]
[1734423451484,0.7887,4000.1,3998.4,0.7985]
[1734423451632,0.7887,4000.1,3998.4,3.0]
[1734423451830,0.7887,4000.1,3998.3,0.55]
[1734423452026,0.7887,4000.1,3998.3,0.7402204]
[1734423452276,0.7887,4000.1,3998.3,3.1902204]
[1734423452847,0.7887,4000.1,3998.3,3.47719321]
[1734423453242,0.7887,4000.1,3998.4,0.553704]
[1734423454141,0.7887,4000.1,3998.4,0.28697281]
[1734423454455,0.7887,4000.1,3998.5,0.34771932]
[1734423455408,0.7887,4000.1,3998.5,0.63469213]
[1734423455882,0.7887,4000.1,3998.5,0.28697281]
[1734423456741,0.7887,4000.1,3998.3,0.1902204]
[1734423456972,0.7887,4000.1,3998.2,0.55]
[1734423457280,0.7887,4000.1,3998.3,3.0]
[1734423458651,0.7887,4000.1,3998.2,0.55]
[1734423458847,0.7887,4000.1,3998.2,1.103704]
[1734423459146,0.7887,4000.1,3998.3,3.28697281]
[1734423459375,0.7887,4000.1,3998.4,1.0402204]
[1734423459680,0.7887,4000.1,3998.4,0.55]
[1734423460225,0.7887,4000.1,3998.6,3.0]
[1734423460364,0.7887,4000.1,3998.4,0.55]
[1734423460564,0.7887,4000.1,3999.0,0.7548]
[1734423460883,0.7887,4000.1,3999.1,0.02500046]
[1734423461067,0.7887,4000.1,3999.2,0.40667733]
[1734423461383,0.7887,4000.1,3999.1,0.02500237]
[1734423461591,0.7887,4000.1,3999.0,1.04177281]
[1734423461746,0.7887,4000.1,3999.0,0.7548]
[1734423462760,0.7887,4000.1,3998.9,3.0]
[1734423462958,0.7887,4000.1,3998.7,0.7548]
[1734423463175,0.7887,4000.1,3998.4,0.7548]
[1734423463559,0.7689,3999.9,3998.9,3.0]
[1734423463756,0.7689,3999.9,3998.4,0.7548]
[1734423464261,0.7689,3999.9,3998.6,3.0]
[1734423464672,0.7689,3999.9,3998.4,1.02153119]
[1734423464881,0.7689,3999.9,3998.6,3.28697281]
[1734423465089,0.7689,3999.9,3998.7,2.3245544]
[1734423465276,0.7689,3999.9,3998.7,1.893704]
[1734423467170,0.7689,3999.9,3998.7,1.34]
[1734423468363,0.8253,3999.7,3998.5,0.5499562]
[1734423469048,0.8253,3999.7,3998.6,0.553704]
[1734423469291,0.8253,3999.7,3998.7,0.79]
[1734423469498,0.8253,3999.7,3998.8,4.14745766]
[1734423469796,0.8253,3999.7,3998.8,1.14745766]
[1734423470383,0.8253,3999.7,3998.9,0.55]
[1734423470582,0.8253,3999.7,3998.9,0.83697281]
[1734423471953,0.8253,3999.7,3998.9,0.55]
[1734423472150,0.8253,3999.7,3998.9,0.88652528]
[1734423473567,0.8253,3999.7,3998.9,0.33652528]
[1734423473796,0.85872712,3999.6,3998.8,0.59375366]
[1734423474252,1.86221183,3999.7,3998.8,0.59375366]
[1734423474450,0.85877712,3999.6,3998.8,0.59375366]
[1734423474656,0.8253,3999.7,3998.8,0.59375366]
[1734423475100,0.8253,3999.7,3998.8,0.88072647]
[1734423475257,0.8253,3999.7,3998.9,0.19246029]
[1734423475616,0.8253,4000.0,3999.0,1.893704]
[1734423476215,1.86221183,4000.4,3999.2,1.34]
[1734423476495,0.8253,4000.4,3999.6,0.55]
[1734423476695,0.8253,4000.7,3999.8,0.55]
[1734423476882,0.8253,4000.7,4000.0,0.55]
[1734423477407,0.8253,4000.7,3999.9,0.55]
[1734423477702,0.8253,4001.2,4000.3,0.55]
[1734423477871,0.8253,4001.2,4000.4,0.489]
[1734423478195,0.8253,4001.2,4000.5,0.55]
[1734423479457,0.8253,4001.2,4000.3,0.55]
[1734423481008,0.8253,4001.2,4000.1,0.55]
[1734423481188,0.8253,4001.2,4000.0,0.55]
[1734423481352,0.8253,4001.2,4000.0,1.07597945]
[1734423481700,0.8253,4001.2,4000.0,0.55]
[1734423481996,0.85767277,4001.1,3999.5,0.7967]
[1734423482311,0.7717,4001.2,3999.5,0.7967]
[1734423482312,0.7717,4001.0,3999.5,0.7967]
[1734423482514,0.7717,4001.0,3999.3,0.25318969]
[1734423482658,0.7717,4001.0,3999.3,0.56474701]